bitfinex/quotes_SOLUSD_20260217
["timestamp","ask_amount","ask_price","bid_price","bid_amount"]
[1771318996230,0.49947571,86.207,86.185,0.28090627]
[1771319000141,0.49947571,86.207,86.187,0.28018754]
[1771319000933,0.2,86.21,86.191,0.28004871]
[1771319001157,0.69947571,86.21,86.191,0.28004871]
[1771319001450,0.2,86.21,86.191,0.28004871]
[1771319002446,0.2,86.21,86.2,3.57400949]
[1771319002953,0.2,86.21,86.201,0.27977582]
[1771319004348,0.49947571,86.207,86.184,11.88271791]
[1771319004540,0.49947571,86.207,86.176,0.27950915]
[1771319004746,0.49947571,86.207,86.172,11.60469758]
[1771319006141,0.49947571,86.207,86.18,3.29423367]
[1771319006441,0.49947571,86.207,86.181,11.60348568]
[1771319007746,0.49947571,86.207,86.182,0.27912054]
[1771319008256,0.49947571,86.207,86.181,11.60348568]
[1771319008843,0.49947571,86.207,86.181,11.88247964]
[1771319010355,0.49947571,86.207,86.182,0.27874516]
[1771319011354,0.49947571,86.207,86.183,11.60321641]
[1771319011551,0.49947571,86.205,86.173,11.60456291]
[1771319011753,0.49947571,86.199,86.15,3.29423367]
[1771319011941,3.29423367,86.18,86.14,3.29423367]
[1771319012258,0.49947571,86.179,86.132,11.61008684]
[1771319012431,0.49947571,86.179,86.14,3.29423367]
[1771319013857,0.49947571,86.179,86.142,0.27838256]
[1771319014152,0.49947571,86.178,86.142,0.27838256]
[1771319016143,0.49947571,86.178,86.15,3.29423367]
[1771319017059,0.49947571,86.178,86.15,3.57226599]
[1771319017858,0.49947571,86.178,86.152,0.27791825]
[1771319019145,0.49947571,86.184,86.152,0.27791825]
[1771319019346,0.49947571,86.183,86.152,0.27791825]
[1771319019960,0.49947571,86.183,86.154,0.27769401]
[1771319021664,0.49947571,86.183,86.155,11.6069874]
[1771319021863,0.49947571,86.183,86.156,0.2774749]
[1771319022068,0.49947571,86.183,86.161,0.2774749]
[1771319022461,0.49947571,86.192,86.161,0.2774749]
[1771319023864,0.49947571,86.189,86.161,0.2774749]
[1771319024651,0.49947571,86.189,86.161,11.88359201]
[1771319024869,0.49947571,86.189,86.161,11.60611711]
[1771319026673,3.29423367,86.19,86.151,29.0188158]
[1771319026674,0.4823165,86.187,86.158,0.27684713]
[1771319029775,0.4823165,86.187,86.16,3.29423367]
[1771319029970,0.4823165,86.187,86.16,3.57068582]
[1771319030275,11.59971696,86.209,86.171,0.48610934]
[1771319030861,11.59916968,86.214,86.181,0.48610934]
[1771319031059,11.59971696,86.209,86.181,0.48610934]
[1771319031461,11.59971696,86.209,86.18,3.29423367]
[1771319031660,11.59971696,86.209,86.174,0.48610934]
[1771319032178,0.48994088,86.208,86.176,0.48610934]
[1771319032384,0.48994088,86.208,86.181,0.48610934]
[1771319034289,0.48994088,86.208,86.183,0.48610934]
[1771319034588,0.48994088,86.208,86.182,11.60335104]
[1771319034589,12.08870338,86.217,86.191,0.48610934]
[1771319034763,0.48994088,86.213,86.191,0.48610934]
[1771319037183,0.48994088,86.213,86.192,0.48610934]
[1771319038784,0.48994088,86.213,86.194,0.48610934]
[1771319040275,0.2,86.22,86.201,0.48610934]
[1771319040490,0.48994088,86.232,86.211,0.48610934]
[1771319041670,0.48994088,86.239,86.211,0.48610934]
[1771319042071,0.48994088,86.239,86.221,0.48610934]
[1771319042586,0.48994088,86.239,86.222,11.59796803]
[1771319042789,0.2,86.24,86.231,0.48610934]
[1771319042970,0.48994088,86.258,86.232,0.48610934]
[1771319043375,0.48994088,86.258,86.24,3.29423367]
[1771319043767,0.48994088,86.265,86.25,3.29423367]
[1771319043984,0.48994088,86.269,86.25,3.29423367]
[1771319044168,0.48994088,86.269,86.251,0.48610934]
[1771319044869,0.2,86.27,86.253,0.48610934]
[1771319045373,0.68994088,86.27,86.253,0.48610934]
[1771319045567,0.68994088,86.27,86.238,28.98927636]
[1771319045568,0.48994088,86.268,86.225,11.59756412]
[1771319045776,0.48994088,86.249,86.219,11.59834179]
[1771319047369,0.48994088,86.249,86.22,3.29423367]
[1771319048570,0.48994088,86.247,86.22,3.29423367]
[1771319049279,0.48994088,86.247,86.221,11.59810255]
[1771319053083,0.48994088,86.247,86.222,0.48610934]
[1771319056300,0.4647763,86.265,86.231,0.48866694]
[1771319059603,0.4647763,86.263,86.227,12.08596245]
[1771319059780,0.4647763,86.259,86.228,0.48866694]
[1771319061190,0.4647763,86.259,86.23,3.29035276]
[1771319061384,0.4647763,86.259,86.231,0.48866694]
[1771319061791,0.4647763,86.258,86.232,12.08529]
[1771319061996,0.4647763,86.258,86.233,0.48866694]
[1771319063713,0.4647763,86.256,86.227,11.59716526]
[1771319064404,0.4647763,86.256,86.227,12.0858322]
[1771319064598,0.4647763,86.256,86.227,11.59716526]
[1771319064805,0.4647763,86.256,86.228,0.48866694]
[1771319066217,3.29035276,86.26,86.228,0.48866694]
[1771319066218,0.4647763,86.254,86.228,0.48866694]
[1771319066586,0.4647763,86.254,86.229,11.59702652]
[1771319066983,0.4647763,86.254,86.23,0.48866694]
[1771319067205,0.4647763,86.254,86.222,0.48866694]
[1771319070194,12.05857593,86.253,86.224,0.48866694]
[1771319070401,0.4647763,86.252,86.224,0.48866694]
[1771319071098,0.4647763,86.268,86.241,0.48866694]
[1771319073001,0.4647763,86.274,86.251,0.48866694]
[1771319073403,0.4647763,86.273,86.237,11.59587202]
[1771319073610,0.4647763,86.259,86.226,11.59743]
[1771319074198,0.4647763,86.259,86.227,0.48866694]
[1771319075203,12.05642567,86.269,86.229,0.48866694]
[1771319075404,11.59030586,86.279,86.241,0.48866694]
[1771319075613,0.4647763,86.278,86.241,0.48866694]
[1771319076708,0.4647763,86.278,86.25,3.29035276]
[1771319076915,0.4647763,86.278,86.25,3.7790197]
[1771319077112,0.4647763,86.278,86.241,0.48866694]
[1771319077313,0.4647763,86.267,86.237,0.48866694]
[1771319079998,0.4647763,86.267,86.238,11.59581622]
[1771319080716,0.4647763,86.267,86.238,12.08448316]
[1771319081316,0.4647763,86.267,86.239,0.48866694]
[1771319082219,0.4647763,86.267,86.241,0.48866694]
[1771319082918,0.4647763,86.273,86.241,0.48866694]
[1771319083121,0.4647763,86.273,86.251,0.48866694]
[1771319083315,0.4647763,86.273,86.252,11.59393405]
[1771319083522,0.4647763,86.273,86.253,0.48866694]
[1771319085133,0.4647763,86.273,86.255,0.46149174]
[1771319087724,0.4647763,86.273,86.249,0.46149174]
[1771319089112,0.48451103,86.279,86.251,0.46149174]
[1771319090635,0.48451103,86.279,86.253,0.47265505]
[1771319096627,0.48451103,86.279,86.26,3.29035276]
[1771319096827,0.48451103,86.279,86.259,0.47265505]
[1771319098739,11.79023181,86.28,86.261,0.47265505]
[1771319099133,29.17230902,86.29,86.26,3.29035276]
[1771319099134,0.66552534,86.29,86.263,0.47265505]
[1771319099327,0.46552534,86.289,86.263,0.47265505]
[1771319099531,0.46552534,86.289,86.27,3.29035276]
[1771319100121,0.46552534,86.289,86.27,3.76300781]
[1771319100322,0.46552534,86.289,86.271,0.47265505]
[1771319100531,0.2,86.29,86.271,0.47265505]
[1771319101253,0.46552534,86.289,86.272,11.59124629]
[1771319101431,0.46552534,86.289,86.269,0.47265505]
[1771319102141,0.46552534,86.288,86.262,11.59245718]
[1771319102321,0.46552534,86.288,86.25,3.29035276]
[1771319102527,0.46552534,86.288,86.25,0.47265505]
[1771319103642,0.46552534,86.286,86.252,0.47265505]
[1771319104834,0.46552534,86.279,86.248,0.47265505]
[1771319105141,0.46552534,86.259,86.231,0.47265505]
[1771319105535,0.46552534,86.249,86.231,0.47265505]
[1771319105835,0.46552534,86.249,86.184,4.61729252]
[1771319105836,0.46552534,86.249,86.223,0.47265505]
[1771319106438,0.46552534,86.249,86.212,0.47265505]
[1771319107938,0.46552534,86.247,86.214,0.47265505]
[1771319110243,0.46552534,86.245,86.216,0.47265505]
[1771319113232,17.92,86.265,86.231,0.47265505]
[1771319113432,0.46552534,86.267,86.241,0.47265505]
[1771319114746,28.97510149,86.281,86.217,40.59524222]
[1771319114747,0.48644528,86.259,86.221,0.47415727]
[1771319115847,0.48644528,86.249,86.215,0.47415727]
[1771319116145,0.48644528,86.239,86.21,0.47415727]
[1771319117635,0.48644528,86.239,86.211,0.47415727]
[1771319118152,0.48644528,86.239,86.213,0.47415727]
[1771319118532,0.48644528,86.247,86.213,0.47415727]
[1771319118934,0.48644528,86.245,86.213,0.47415727]
[1771319120957,0.48644528,86.243,86.215,0.47415727]
[1771319122452,0.48644528,86.239,86.2,3.76623003]
[1771319122656,0.48644528,86.239,86.202,0.47415727]
[1771319124557,0.48644528,86.238,86.21,3.29207276]
[1771319124752,0.48644528,86.238,86.211,0.47415727]
[1771319125153,0.48644528,86.238,86.213,0.47415727]
[1771319127059,0.48644528,86.238,86.215,0.47415727]
[1771319129359,0.48644528,86.238,86.217,0.47415727]
[1771319129558,0.48644528,86.243,86.217,0.47415727]
[1771319133352,0.48644528,86.243,86.219,0.47415727]
[1771319133861,0.48644528,86.241,86.219,0.47415727]
[1771319134157,0.48644528,86.241,86.215,17.78]
[1771319134158,0.48644528,86.239,86.215,0.47415727]
[1771319136945,0.48644528,86.239,86.216,11.59877516]
[1771319137150,0.48644528,86.239,86.216,12.07293243]
[1771319137668,0.48644528,86.245,86.217,0.47415727]
[1771319139154,0.48644528,86.245,86.219,0.47415727]
[1771319139355,0.48644528,86.243,86.219,0.47415727]
[1771319139556,0.48644528,86.243,86.213,0.47415727]
[1771319139760,0.48644528,86.243,86.214,0.47415727]
[1771319140147,0.48644528,86.239,86.213,29.39907877]
[1771319141053,0.48644528,86.239,86.214,0.47415727]
[1771319142570,0.48644528,86.239,86.215,11.5989097]
[1771319143867,0.48644528,86.239,86.208,28.99938344]
[1771319144055,0.48644528,86.239,86.208,29.47354071]
[1771319144263,0.48644528,86.239,86.209,0.48158772]
[1771319146170,0.48644528,86.239,86.21,11.59958241]
[1771319146379,0.48644528,86.239,86.211,0.48158772]
[1771319149178,0.48644528,86.239,86.213,0.48158772]
[1771319149663,12.07808044,86.244,86.213,0.48158772]
[1771319149865,0.48298189,86.243,86.213,0.48158772]
[1771319151158,0.48298189,86.243,86.214,11.59904423]
[1771319151364,0.48298189,86.243,86.215,0.49765521]
[1771319151559,3.29207276,86.26,86.221,0.49765521]
[1771319151764,11.59178374,86.268,86.221,0.49765521]
[1771319151975,11.59178374,86.268,86.231,0.49765521]
[1771319153575,0.47755993,86.267,86.233,0.49765521]
[1771319153981,0.47755993,86.267,86.235,0.49765521]
[1771319154282,0.47755993,86.267,86.241,0.49765521]
[1771319155380,0.47755993,86.277,86.241,0.49765521]
[1771319155683,0.47755993,86.275,86.243,0.49765521]
[1771319155983,0.47755993,86.259,86.228,11.59716101]
[1771319157187,0.47755993,86.259,86.228,12.09481622]
[1771319157390,0.47755993,86.259,86.229,0.49765521]
[1771319158273,0.47755993,86.259,86.23,12.09454724]
[1771319158975,0.47755993,86.257,86.23,0.49765521]
[1771319159173,0.47755993,86.249,86.215,0.49765521]
[1771319160596,0.47755993,86.249,86.217,0.49765521]
[1771319161494,0.47755993,86.247,86.217,0.49765521]
[1771319162398,0.47755993,86.239,86.216,11.59877516]
[1771319162573,0.47755993,86.239,86.211,0.49765521]
[1771319162574,0.47755993,86.239,86.212,11.59931332]
[1771319163500,0.47755993,86.239,86.213,0.49765521]
[1771319164499,0.47755993,86.249,86.221,0.49765521]
[1771319164788,0.47755993,86.249,86.223,0.49765521]
[1771319166592,0.47755993,86.269,86.231,0.49765521]
[1771319167186,0.47755993,86.267,86.233,0.49765521]
[1771319167688,0.47755993,86.259,86.233,0.49765521]
[1771319168689,2.30212122,86.26,86.233,0.49765521]
[1771319169789,3.29207276,86.24,86.211,0.49765521]
[1771319170576,3.29207276,86.24,86.214,0.49765521]
[1771319170892,0.47755993,86.239,86.214,0.49765521]
[1771319171481,0.47755993,86.237,86.215,11.5989097]
[1771319174696,0.47755993,86.237,86.215,0.45659092]
[1771319175288,0.49002753,86.242,86.215,0.45659092]
[1771319176281,12.08450969,86.248,86.215,0.45659092]
[1771319176480,0.49002753,86.247,86.215,0.45659092]
[1771319177403,11.59474062,86.246,86.217,0.45659092]
[1771319177793,12.08476815,86.246,86.217,0.45659092]
[1771319178598,0.49002753,86.245,86.217,0.45659092]
[1771319179292,11.59474062,86.246,86.205,11.60018702]
[1771319179293,0.49002753,86.229,86.205,11.60018702]
[1771319179802,28.98685156,86.246,86.205,11.60018702]
[1771319179803,0.49002753,86.238,86.206,0.45659092]
[1771319180001,0.49002753,86.243,86.211,0.45659092]
[1771319180313,0.49002753,86.249,86.211,0.45659092]
[1771319181490,0.49002753,86.249,86.213,0.45659092]
[1771319181491,11.59447175,86.248,86.213,0.45659092]
[1771319181882,0.49002753,86.249,86.213,0.45659092]
[1771319182082,0.49002753,86.259,86.213,0.45659092]
[1771319182306,0.49002753,86.259,86.215,0.45659092]
[1771319183498,0.49002753,86.255,86.217,0.45659092]
[1771319185987,3.78247979,86.26,86.221,0.45659092]
[1771319186189,0.49002753,86.259,86.221,0.45659092]
[1771319186814,0.49002753,86.259,86.223,0.45659092]
[1771319187795,11.59296774,86.26,86.225,0.45659092]
[1771319187996,11.59296774,86.26,86.226,0.45659092]
[1771319188196,0.49002753,86.275,86.231,0.45659092]
[1771319189120,0.49002753,86.275,86.241,0.45659092]
[1771319189301,0.49002753,86.274,86.243,0.45659092]
[1771319191407,28.97369187,86.286,86.245,0.45659092]
[1771319191408,0.49002753,86.269,86.245,0.45659092]
[1771319195629,0.49002753,86.269,86.247,0.45659092]
[1771319195922,3.29245226,86.28,86.247,0.45659092]
[1771319196098,12.08000059,86.282,86.251,0.45659092]
[1771319196300,11.58997306,86.282,86.251,0.45659092]
[1771319197332,0.49002753,86.288,86.251,0.45659092]
[1771319197638,11.58939197,86.286,86.252,0.45659092]
[1771319197806,0.49002753,86.288,86.261,0.45659092]
[1771319198521,0.2,86.29,86.261,0.45659092]
[1771319198725,3.49245226,86.29,86.261,0.45659092]
[1771319199508,11.58896267,86.289,86.261,0.45659092]
[1771319200112,3.98247979,86.29,86.263,0.45659092]
[1771319200929,3.49245226,86.29,86.263,0.45659092]
[1771319203322,0.2,86.29,86.265,0.45659092]
[1771319203729,0.2,86.29,86.266,17.92]
[1771319204024,3.98247979,86.29,86.268,0.45659092]
[1771319206341,0.4654332,86.279,86.265,17.94]
[1771319214231,0.49549606,86.278,86.254,0.50569442]
[1771319214535,0.49549606,86.278,86.256,0.50569442]
[1771319216240,0.49549606,86.278,86.258,0.50569442]
[1771319218644,0.49549606,86.281,86.26,0.50569442]
[1771319219731,0.49549606,86.281,86.261,11.5927244]
[1771319220053,0.49549606,86.281,86.262,0.50569442]
[1771319220426,0.49549606,86.289,86.262,0.50569442]
[1771319222141,0.49549606,86.289,86.263,11.59245562]
[1771319222345,0.49549606,86.289,86.264,0.50569442]
[1771319225051,0.49549606,86.279,86.259,11.5929563]
[1771319225261,11.58909697,86.288,86.243,0.50569442]
[1771319225262,0.49549606,86.269,86.243,0.50569442]
[1771319225440,11.58909697,86.288,86.232,0.50569442]
[1771319225441,0.49549606,86.259,86.232,0.50569442]
[1771319225641,0.49549606,86.259,86.234,0.50569442]
[1771319227350,0.49549606,86.259,86.236,0.50569442]
[1771319232266,0.49549606,86.269,86.238,0.50569442]
[1771319233256,0.49549606,86.269,86.24,0.50569442]
[1771319235957,0.52039233,86.249,86.217,0.52611408]
[1771319236269,0.52039233,86.249,86.219,0.52611408]
[1771319238065,0.52039233,86.249,86.221,0.52611408]
[1771319239154,0.52039233,86.254,86.221,0.52611408]
[1771319239561,0.52039233,86.268,86.231,0.52611408]
[1771319239760,0.52039233,86.268,86.233,0.52611408]
[1771319240266,0.52039233,86.268,86.236,0.52611408]
[1771319241962,0.52039233,86.268,86.238,0.52611408]
[1771319242163,0.52039233,86.259,86.222,0.52611408]
[1771319242362,0.52039233,86.259,86.224,0.52611408]
[1771319244464,4.61729252,86.282,86.204,0.52611408]
[1771319244465,0.52039233,86.249,86.204,0.52611408]
[1771319244673,0.52039233,86.249,86.206,0.52611408]
[1771319244963,3.28987573,86.24,86.206,0.52611408]
[1771319245168,0.52039233,86.239,86.206,0.52611408]
[1771319248676,0.52039233,86.229,86.194,0.52611408]
[1771319248856,3.28987573,86.22,86.181,0.52611408]
[1771319249058,0.52039233,86.209,86.181,0.52611408]
[1771319250369,0.52039233,86.199,86.174,0.52611408]
[1771319250671,0.52039233,86.199,86.175,12.13040766]
[1771319251655,0.52039233,86.199,86.175,11.60429358]
[1771319251855,0.52039233,86.199,86.176,0.52611408]
[1771319254076,0.52039233,86.199,86.178,0.52611408]
[1771319254770,0.52039233,86.199,86.177,11.60402427]
[1771319254974,0.52039233,86.199,86.166,18.0]
[1771319254975,0.52039233,86.197,86.173,11.60456206]
[1771319256076,0.52039233,86.213,86.174,0.52611408]
[1771319256277,0.52039233,86.209,86.174,0.52611408]
[1771319258369,0.52039233,86.208,86.176,0.52611408]
[1771319258770,0.52039233,86.199,86.169,11.60506149]
[1771319259363,0.52039233,86.199,86.17,0.52611408]
[1771319261884,0.52039233,86.199,86.172,0.52611408]
[1771319263070,11.60119724,86.198,86.172,0.52611408]
[1771319263274,0.52039233,86.189,86.166,0.52611408]
[1771319265584,0.52039233,86.189,86.168,0.50246918]
[1771319267672,0.52039233,86.189,86.156,18.02]
[1771319267673,3.28987573,86.2,86.17,0.50246918]
[1771319267984,12.10996179,86.206,86.171,0.50246918]
[1771319267985,0.50983797,86.205,86.171,0.50246918]
[1771319268771,3.28987573,86.21,86.171,0.50246918]
[1771319268969,0.50983797,86.209,86.171,0.50246918]
[1771319269377,0.50983797,86.199,86.171,0.50246918]
[1771319269591,3.28987573,86.2,86.172,11.60469758]
[1771319269592,0.50983797,86.197,86.172,11.60469758]
[1771319269999,0.52846206,86.189,86.168,18.02]
[1771319270168,0.52846206,86.189,86.169,11.6051016]
[1771319271576,0.52846206,86.189,86.169,12.14861735]
[1771319273796,0.52846206,86.199,86.17,0.54351575]
[1771319279000,0.52846206,86.199,86.172,0.54351575]
[1771319281198,0.52846206,86.189,86.173,11.60456291]
[1771319281399,0.52846206,86.189,86.173,12.14807866]
[1771319281995,0.52846206,86.189,86.173,0.54351575]
[1771319282601,0.52846206,86.199,86.173,0.54351575]
[1771319283796,0.52846206,86.199,86.174,11.60442824]
[1771319283979,0.52846206,86.199,86.175,0.54351575]
[1771319291804,0.52846206,86.198,86.175,0.54351575]
[1771319291989,0.52846206,86.198,86.17,0.54351575]
[1771319293218,11.60115078,86.199,86.171,11.60483225]
[1771319293219,0.52846206,86.189,86.171,11.60483225]
[1771319293708,0.52846206,86.179,86.151,0.54351575]
[1771319294009,0.52846206,86.179,86.152,0.54351575]
[1771319295716,0.52846206,86.179,86.154,0.51480303]
[1771319296637,4.61729252,86.194,86.144,0.51480303]
[1771319296638,3.8375012,86.16,86.144,0.51480303]
[1771319296795,3.8375012,86.18,86.146,0.51480303]
[1771319296999,0.54762547,86.185,86.151,0.51480303]
[1771319297407,0.54762547,86.185,86.153,0.51480303]
[1771319297806,0.54762547,86.185,86.155,0.51480303]
[1771319301619,0.54762547,86.179,86.153,0.51480303]
[1771319301828,0.54762547,86.189,86.153,0.51480303]
[1771319303628,0.54762547,86.189,86.155,0.51480303]
[1771319308204,0.54762547,86.194,86.161,0.51480303]
[1771319310029,0.54762547,86.194,86.163,0.51480303]
[1771319312525,0.54762547,86.194,86.165,0.51480303]
[1771319313634,0.54762547,86.209,86.171,0.51480303]
[1771319314207,0.54762547,86.219,86.181,0.51480303]
[1771319314608,0.54762547,86.219,86.183,0.51480303]
[1771319315029,0.54762547,86.219,86.184,18.14]
[1771319315227,0.54762547,86.219,86.185,0.51480303]
[1771319317130,0.54762547,86.217,86.187,0.51480303]
[1771319319414,0.54762547,86.217,86.186,11.60281252]
[1771319319415,0.54762547,86.217,86.189,0.51480303]
[1771319321631,0.54762547,86.217,86.191,0.51480303]
[1771319323010,3.29638133,86.23,86.191,0.51480303]
[1771319323011,0.54762547,86.222,86.191,0.51480303]
[1771319323210,0.54762547,86.222,86.193,0.51480303]
[1771319324134,0.54762547,86.219,86.195,0.51480303]
[1771319324349,11.59810255,86.221,86.172,0.50638954]
[1771319324350,0.52410298,86.199,86.172,0.50638954]
[1771319324516,0.52410298,86.199,86.173,0.50638954]
[1771319327433,0.52410298,86.199,86.174,11.60442824]
[1771319327735,0.52410298,86.199,86.175,0.50638954]
[1771319329625,0.52410298,86.199,86.176,11.60415893]
[1771319330631,0.52410298,86.199,86.176,12.1578268]
[1771319331418,0.52410298,86.199,86.178,11.60388962]
[1771319331619,11.59823706,86.22,86.179,0.55366787]
[1771319331819,14.89461839,86.22,86.181,0.55366787]
[1771319332525,0.553946,86.219,86.181,0.55366787]
[1771319335138,0.553946,86.217,86.183,0.55366787]
[1771319336653,0.553946,86.217,86.184,0.55366787]
[1771319338966,0.553946,86.215,86.184,0.55366787]
[1771319339147,3.29638133,86.21,86.183,18.2]
[1771319339336,0.553946,86.209,86.177,11.60393856]
[1771319340562,12.15370225,86.209,86.177,12.15760643]
[1771319340764,0.553946,86.208,86.178,0.55366787]
[1771319343158,0.553946,86.208,86.18,0.55366787]
[1771319344755,0.553946,86.206,86.181,11.60348568]
[1771319345138,0.553946,86.206,86.182,0.55366787]
[1771319347047,0.553946,86.206,86.184,0.55366787]
[1771319347636,0.553946,86.204,86.184,0.55366787]
[1771319347836,0.553946,86.199,86.16,0.55366787]
[1771319348166,0.553946,86.189,86.161,18.22]
[1771319350264,0.553946,86.189,86.162,11.60604442]
[1771319350938,0.553946,86.189,86.163,0.55366787]
[1771319351146,0.553946,86.209,86.171,0.55366787]
[1771319352566,0.553946,86.207,86.173,0.55366787]
[1771319356072,4.61729252,86.222,86.162,29.01511106]
[1771319356073,0.5467495,86.189,86.162,11.60592225]
[1771319357170,0.5467495,86.189,86.162,12.14003427]
[1771319359969,0.5467495,86.189,86.163,0.53411202]
[1771319360366,0.5467495,86.199,86.163,0.53411202]
[1771319360954,0.5467495,86.199,86.165,0.53411202]
[1771319361568,0.5467495,86.199,86.167,0.53411202]
[1771319362272,0.5467495,86.199,86.127,46.44302781]
[1771319362273,0.5467495,86.189,86.141,0.53411202]
[1771319362455,0.5467495,86.179,86.149,0.53411202]
[1771319362656,0.5467495,86.189,86.149,0.53411202]
[1771319363656,0.5467495,86.187,86.151,0.53411202]
[1771319365859,0.5467495,86.187,86.152,11.60739158]
[1771319366075,0.5467495,86.187,86.153,0.53411202]
[1771319369484,0.5467495,86.179,86.155,0.53411202]
[1771319372272,0.5467495,86.177,86.155,0.53411202]
[1771319372779,0.5467495,86.177,86.15,0.53411202]
[1771319372987,0.5467495,86.177,86.151,11.60752632]
[1771319375474,0.5467495,86.177,86.152,0.53411202]
[1771319377069,0.5467495,86.186,86.152,0.53411202]
[1771319377468,0.5467495,86.186,86.154,0.53411202]
[1771319378366,0.5467495,86.186,86.155,11.6069874]
[1771319378567,11.60253786,86.189,86.156,0.53411202]
[1771319378770,0.5467495,86.188,86.156,0.53411202]
[1771319379491,0.5467495,86.179,86.156,0.53411202]
[1771319380592,0.5467495,86.188,86.158,0.53411202]
[1771319381390,0.5467495,86.179,86.157,11.60671796]
[1771319381583,0.5467495,86.179,86.152,0.53411202]
[1771319382580,0.5467495,86.179,86.154,0.53411202]
[1771319384592,0.5467495,86.179,86.156,0.51620846]
[1771319385800,0.53340517,86.178,86.156,0.51620846]
[1771319386485,0.53340517,86.177,86.156,0.51620846]
[1771319386892,11.60415893,86.176,86.156,0.51620846]
[1771319387199,0.53340517,86.175,86.148,0.51620846]
[1771319388896,11.60442824,86.174,86.148,0.51620846]
[1771319389100,11.60442824,86.174,86.13,3.49689658]
[1771319389101,3.29689658,86.16,86.13,0.2]
[1771319389298,0.53340517,86.159,86.132,0.51620846]
[1771319389796,0.53340517,86.169,86.132,0.51620846]
[1771319391485,12.13860639,86.169,86.134,0.53761115]
[1771319391686,12.13860639,86.169,86.135,0.53761115]
[1771319394401,0.55200992,86.168,86.137,0.53761115]
[1771319396308,11.60537096,86.167,86.138,11.60927813]
[1771319396508,0.55200992,86.166,86.139,0.53761115]
[1771319396802,0.55200992,86.149,86.132,18.26]
[1771319397009,0.55200992,86.149,86.13,0.2]
[1771319397305,0.55200992,86.159,86.132,0.53761115]
[1771319398597,0.55200992,86.157,86.134,0.53761115]
[1771319399207,0.55200992,86.157,86.13,0.2]
[1771319399208,0.55200992,86.149,86.13,0.2]
[1771319399795,0.55200992,86.149,86.121,0.53761115]
[1771319400103,40.62304138,86.158,86.12,0.2]
[1771319400104,0.55200992,86.139,86.12,0.2]
[1771319400501,11.61062604,86.128,86.098,0.53761115]
[1771319400810,11.61062604,86.128,86.08,3.49689658]
[1771319400811,6.62300992,86.096,86.05,0.1]
[1771319401107,6.62300992,86.096,86.043,0.53761115]
[1771319401108,3.29689658,86.06,86.043,0.53761115]
[1771319401292,3.29689658,86.05,86.036,0.53761115]
[1771319401516,0.55200992,86.049,86.021,0.53761115]
[1771319401701,0.55200992,86.056,86.021,0.53761115]
[1771319402018,3.29689658,86.07,86.041,0.53761115]
[1771319402915,3.29689658,86.06,86.041,0.53761115]
[1771319403088,3.29689658,86.05,86.021,0.53761115]
[1771319403293,3.29689658,86.04,86.021,0.53761115]
[1771319405219,14.91810417,86.05,86.021,0.53761115]
[1771319405516,0.09,106.37,86.02,0.1]
[1771319405517,3.29689658,86.07,86.023,0.53761115]
[1771319406017,3.29689658,86.05,86.023,0.53761115]
[1771319407015,11.62128554,86.049,86.023,0.53761115]
[1771319407416,0.55200992,86.048,86.023,0.53761115]
[1771319407718,3.8489065,86.04,86.02,0.1]
[1771319409203,3.8489065,86.04,86.015,0.05756474]
[1771319409406,0.55200992,86.039,86.015,0.05756474]
[1771319410000,0.55200992,86.039,86.01,0.1]
[1771319410001,0.55200992,86.029,86.01,0.1]
[1771319410216,0.55200992,86.029,86.002,11.62763656]
[1771319410217,0.55200992,86.029,86.002,9.92900668]
[1771319410415,0.55200992,86.029,85.984,18.24]
[1771319410416,3.29689658,86.01,85.94,3.29689658]
[1771319410729,3.29689658,85.99,85.95,3.29689658]
[1771319411029,3.29689658,86.0,85.95,3.29689658]
[1771319411328,3.29689658,86.0,85.936,18.24]
[1771319411329,3.29689658,85.99,85.953,0.57077404]
[1771319412023,3.29689658,85.97,85.953,0.57077404]
[1771319412225,4.61729252,85.996,85.927,29.09417323]
[1771319412226,3.29689658,85.96,85.943,0.57077404]
[1771319412529,3.29689658,85.97,85.943,0.57077404]
[1771319412701,3.29689658,85.95,85.901,0.57077404]
[1771319412901,4.61729252,85.947,85.902,0.57077404]
[1771319413127,3.29689658,85.91,85.856,0.57077404]
[1771319413420,3.29689658,85.91,85.845,93.19046507]
[1771319413421,3.29689658,85.91,85.871,0.57077404]
[1771319413622,40.72324482,85.946,85.881,0.57077404]
[1771319413805,3.29689658,85.94,85.901,0.57077404]
[1771319414015,8.28960495,85.94,85.901,0.57077404]
[1771319414207,8.28960495,85.95,85.911,0.57077404]
[1771319414802,8.28960495,85.95,85.858,1.16471382]
[1771319414803,8.28960495,85.97,85.921,0.57077404]
[1771319415011,5.36086188,86.005,85.89,8.28960495]
[1771319415012,8.28960495,85.98,85.931,0.57077404]
[1771319415216,8.28960495,85.98,85.906,4.61729252]
[1771319415217,8.28960495,85.97,85.943,0.57077404]
[1771319415427,8.28960495,85.96,85.922,29.09595055]
[1771319415727,8.28960495,85.98,85.931,0.57077404]
[1771319415925,8.28960495,85.97,85.931,0.57077404]
[1771319416123,8.28960495,85.98,85.931,0.57077404]
[1771319417027,8.28960495,85.96,85.932,11.63710841]